bitfinex/quotes_ETHUSD_20260214
["timestamp","ask_amount","ask_price","bid_price","bid_amount"]
[1771041366972,2.91759354,2055.6,2055.1,0.48675796]
[1771041367159,3.89081642,2055.7,2055.1,0.48675796]
[1771041367362,2.91738065,2055.6,2055.1,0.48675796]
[1771041367561,3.89081642,2055.7,2055.1,0.48675796]
[1771041367763,2.9173817,2055.6,2055.1,0.48675796]
[1771041367963,3.89081642,2055.7,2055.1,1.7032344]
[1771041368290,2.9173817,2055.6,2055.2,0.48675796]
[1771041368592,3.42013607,2055.7,2055.2,0.48675796]
[1771041369477,1e-08,2055.7,2055.2,0.48675796]
[1771041370171,1e-08,2055.7,2055.4,0.48675796]
[1771041372194,1e-08,2055.7,2055.4,1.70306191]
[1771041372394,1e-08,2055.7,2055.5,0.48675796]
[1771041379571,1e-08,2055.7,2055.3,0.48675796]
[1771041380270,1e-08,2055.7,2055.3,1.70311622]
[1771041380998,1e-08,2055.7,2055.4,0.48675796]
[1771041383506,1e-08,2055.7,2055.5,0.48675796]
[1771041384191,0.0011,2055.8,2055.7,0.48675796]
[1771041384393,0.0003,2055.8,2055.7,0.48675796]
[1771041384795,0.0011,2055.9,2055.7,0.48675796]
[1771041385002,0.0011,2056.0,2055.7,0.48675796]
[1771041386291,0.0011,2056.0,2055.9,0.48675796]
[1771041388306,2.2081,2056.2,2056.0,0.48675796]
[1771041388505,0.0011,2056.6,2056.2,0.48675796]
[1771041388731,11.23070462,2057.7,2056.6,0.48675796]
[1771041389002,7.10960988,2057.1,2057.0,0.2539997]
[1771041389210,0.47403431,2057.0,2056.3,0.48675796]
[1771041389706,2.65897416,2056.9,2056.3,0.48675796]
[1771041389912,2.65897416,2056.8,2056.3,0.48675796]
[1771041390204,0.47403431,2057.1,2056.3,0.48675796]
[1771041390378,3.87240853,2057.0,2056.4,0.48675796]
[1771041390678,2.65701405,2056.9,2056.4,0.48675796]
[1771041390878,1.21539448,2057.0,2056.4,0.48675796]
[1771041393108,0.49664828,2057.0,2056.4,0.48675796]
[1771041394803,5.35803418,2057.1,2056.1,0.46987139]
[1771041395008,0.49664828,2057.0,2056.1,0.46987139]
[1771041395681,1.21542126,2056.9,2056.1,1.68571536]
[1771041395913,1.21542126,2056.9,2056.2,0.46987139]
[1771041399108,1.21542126,2056.9,2056.3,0.49585063]
[1771041405801,1.21542126,2056.9,2056.4,0.49585063]
[1771041410194,4.86168506,2057.0,2056.4,0.49585063]
[1771041410400,5.35174889,2057.0,2056.4,0.49585063]
[1771041410938,5.35174889,2057.0,2056.3,0.49585063]
[1771041412131,0.49006383,2056.9,2056.3,0.49585063]
[1771041412332,3.14877192,2056.9,2056.3,0.49585063]
[1771041412504,1.21548035,2056.8,2056.3,0.49585063]
[1771041417036,0.49006383,2056.9,2056.3,0.49585063]
[1771041417334,2.66483527,2056.8,2056.3,0.49585063]
[1771041417500,2.66483527,2056.7,2056.3,0.49585063]
[1771041417703,0.49006383,2056.9,2056.3,0.49585063]
[1771041417902,2.6666112,2056.8,2056.3,0.49585063]
[1771041418209,2.6666112,2056.7,2056.3,0.49585063]
[1771041418409,0.49006383,2056.9,2056.1,0.49585063]
[1771041418736,3.15911366,2056.8,2056.1,0.49585063]
[1771041418928,2.66904983,2056.7,2056.1,0.49585063]
[1771041419217,3.88470729,2056.6,2056.1,0.49585063]
[1771041419424,1.21565746,2056.6,2056.1,0.49585063]
[1771041420512,1.70572129,2056.6,2056.0,0.001]
[1771041420831,2.66933317,2056.5,2056.0,0.001]
[1771041421030,2.66933317,2056.4,2056.0,1.69109018]
[1771041421534,1.21563261,2056.6,2056.0,1.69109018]
[1771041421737,2.66840876,2056.5,2056.0,1.69109018]
[1771041422036,2.66840876,2056.4,2056.1,0.47414276]
[1771041422231,1.21563261,2056.6,2056.1,0.47414276]
[1771041422410,2.66774885,2056.5,2056.1,0.47414276]
[1771041422611,1.21563261,2056.6,2056.1,0.47414276]
[1771041422811,2.66774858,2056.5,2056.1,0.47414276]
[1771041423109,1.21563261,2056.6,2056.1,0.47414276]
[1771041423310,3.88339437,2056.5,2056.1,0.47414276]
[1771041423634,1.21570706,2056.5,2056.1,0.47414276]
[1771041425336,4.86250237,2056.6,2056.1,0.47414276]
[1771041425537,2.66646372,2056.5,2056.1,0.47414276]
[1771041425834,4.86250237,2056.6,2056.1,0.47414276]
[1771041426010,2.66646366,2056.5,2056.1,0.47414276]
[1771041426210,4.86250237,2056.6,2056.1,0.47414276]
[1771041426437,2.66616505,2056.5,2056.0,0.001]
[1771041426638,5.34193267,2056.6,2056.0,0.001]
[1771041426938,2.6661711,2056.5,2056.0,0.001]
[1771041427107,5.34193267,2056.6,2056.0,0.001]
[1771041427307,2.66609275,2056.5,2056.0,0.001]
[1771041427504,5.34193267,2056.6,2056.0,0.001]
[1771041427738,2.6658995,2056.5,2056.0,0.001]
[1771041427926,5.34193267,2056.6,2056.0,0.001]
[1771041428125,2.71696901,2056.5,2056.0,0.001]
[1771041428317,3.19616089,2056.4,2056.0,0.001]
[1771041428513,2.71673059,2056.3,2056.0,0.001]
[1771041429032,3.19616089,2056.3,2056.0,0.001]
[1771041429227,2.71673059,2056.2,2056.0,0.001]
[1771041429745,1.21589416,2056.1,2056.0,0.001]
[1771041429914,4.86323212,2056.3,2056.0,0.001]
[1771041430113,2.71601121,2056.2,2056.0,0.001]
[1771041430316,4.86323212,2056.3,2056.0,0.001]
[1771041430534,2.74224552,2056.2,2056.0,0.001]
[1771041430736,4.86323212,2056.3,2056.0,0.001]
[1771041431038,2.74224469,2056.2,2056.0,0.001]
[1771041431346,4.86323212,2056.3,2056.0,0.001]
[1771041431848,1.21565767,2056.5,2056.0,0.001]
[1771041432145,2.213,2056.3,2056.0,0.001]
[1771041433532,2.6924303,2056.3,2056.0,0.001]
[1771041433932,1.21583503,2056.2,2056.0,0.001]
[1771041434144,1.21583503,2056.2,2055.8,0.001]
[1771041437045,1.69526533,2056.2,2055.8,0.001]
[1771041437215,1.21583503,2056.2,2055.8,0.001]
[1771041437415,1.21583503,2056.2,2055.8,0.47514276]
[1771041443458,1.21583503,2056.2,2055.8,0.001]
[1771041443627,1.69526533,2056.2,2055.8,0.001]
[1771041443831,0.4794303,2056.1,2055.8,0.001]
[1771041446666,0.4794303,2055.9,2055.3,0.001]
[1771041446952,4.9684084,2055.8,2055.3,0.47514276]
[1771041447248,2.7414084,2055.7,2055.3,0.47514276]
[1771041447453,2.7414084,2055.6,2055.3,0.47514276]
[1771041447655,2.7414084,2055.5,2055.3,0.47514276]
[1771041447854,2.227,2055.8,2055.3,0.47514276]
[1771041448053,2.91123652,2055.7,2055.3,0.47514276]
[1771041448254,2.91123652,2055.6,2055.3,0.47514276]
[1771041448455,2.91123652,2055.5,2055.3,0.47514276]
[1771041448787,2.91039408,2055.4,2055.2,0.001]
[1771041448951,0.4794303,2055.6,2055.2,0.001]
[1771041449266,2.91040131,2055.5,2055.2,0.001]
[1771041449469,2.91040131,2055.4,2055.2,0.001]
[1771041449629,0.4794303,2055.6,2055.2,0.001]
[1771041449830,2.90924499,2055.5,2055.2,0.001]
[1771041450163,2.90924499,2055.4,2055.2,0.001]
[1771041450333,0.4794303,2055.6,2055.2,0.001]
[1771041450529,2.90798888,2055.5,2055.2,0.001]
[1771041450728,1.21624908,2055.5,2055.2,0.001]
[1771041451173,1.21624908,2055.5,2054.9,0.001]
[1771041451332,1.21624908,2055.5,2054.9,0.46670764]
[1771041451333,1.67055374,2055.5,2054.9,0.46670764]
[1771041451732,2.232,2055.4,2054.9,0.46670764]
[1771041452029,2.232,2055.4,2055.0,0.46570764]
[1771041452451,1.21616744,2055.7,2055.0,0.46570764]
[1771041452655,3.44816744,2055.7,2055.0,0.46570764]
[1771041452829,3.44816744,2055.7,2055.2,0.46570764]
[1771041455877,3.44816744,2055.7,2055.3,0.46570764]
[1771041456051,1.21609999,2055.8,2055.3,0.46570764]
[1771041457448,3.449058,2055.9,2055.3,0.46570764]
[1771041457651,2.90788674,2055.8,2055.3,0.46570764]
[1771041457845,3.449058,2055.9,2055.4,0.46570764]
[1771041458044,2.90788697,2055.8,2055.4,0.46570764]
[1771041458270,3.449058,2055.9,2055.4,0.46570764]
[1771041458475,2.9084905,2055.8,2055.4,0.46570764]
[1771041458654,3.449058,2055.9,2055.4,0.46570764]
[1771041461375,2.90899187,2055.8,2055.4,0.46570764]
[1771041461674,3.449058,2055.9,2055.4,0.46570764]
[1771041461868,2.90901081,2055.8,2055.4,0.46570764]
[1771041462177,0.49568338,2055.8,2055.2,0.49771467]
[1771041463382,1.21613075,2055.7,2055.2,0.49771467]
[1771041467267,3.40688141,2055.6,2055.0,0.49771467]
[1771041467454,0.49568338,2055.6,2055.0,0.49771467]
[1771041467654,1.21624908,2055.5,2055.0,1.71425132]
[1771041467884,1.21623707,2055.6,2055.0,1.71425132]
[1771041470467,1.71192045,2055.6,2055.0,0.49771467]
[1771041471575,1.71192045,2055.6,2055.0,1.7142589]
[1771041471979,1.71192045,2055.6,2055.0,0.49771467]
[1771041472173,1.21623707,2055.6,2055.0,1.71425848]
[1771041472374,4.12968744,2055.5,2055.0,1.71425848]
[1771041472682,1.21627141,2055.5,2055.0,1.71425848]
[1771041473267,1.21627141,2055.5,2055.0,0.49771467]
[1771041475077,1.21627141,2055.5,2055.0,1.71425113]
[1771041475282,1.21623678,2055.6,2055.0,1.71425113]
[1771041475476,2.91548602,2055.5,2055.1,0.49771467]
[1771041475786,1.21623678,2055.6,2055.1,0.49771467]
[1771041475978,2.91547431,2055.5,2055.1,0.49771467]
[1771041476185,1.21623678,2055.6,2055.1,0.49771467]
[1771041476361,2.91640838,2055.5,2055.1,0.49771467]
[1771041476688,1.21623678,2055.6,2055.1,0.49771467]
[1771041476888,2.91640732,2055.5,2055.1,0.49771467]
[1771041477184,4.86461913,2055.7,2055.1,1.71419787]
[1771041477386,2.91642633,2055.6,2055.1,1.71419787]
[1771041477689,2.91642633,2055.5,2055.1,1.71419787]
[1771041477892,4.86461913,2055.7,2055.1,1.71419787]
[1771041478099,2.91642481,2055.6,2055.1,1.71419787]
[1771041478275,2.91642481,2055.5,2055.1,1.71419787]
[1771041478477,4.86461913,2055.7,2055.1,1.71419787]
[1771041478686,2.91659455,2055.6,2055.1,1.71419787]
[1771041478888,2.91659455,2055.5,2055.1,1.71419787]
[1771041479066,4.86461913,2055.7,2055.1,1.71419787]
[1771041479384,2.91659455,2055.6,2055.1,1.71419787]
[1771041479584,2.91659455,2055.5,2055.1,0.49771467]
[1771041479794,5.36030251,2055.7,2055.1,0.49771467]
[1771041479984,2.91705802,2055.6,2055.1,0.49771467]
[1771041480185,2.91705802,2055.5,2055.1,0.49771467]
[1771041480376,5.36030251,2055.7,2055.1,0.49771467]
[1771041480564,2.91753796,2055.6,2055.1,0.49771467]
[1771041480766,2.91753796,2055.5,2055.1,0.49771467]
[1771041480984,5.36030251,2055.7,2055.1,0.49771467]
[1771041481195,4.13377164,2055.6,2055.1,0.49771467]
[1771041481396,2.91753714,2055.5,2055.1,0.49771467]
[1771041481589,1.2162345,2055.6,2055.1,0.49771467]
[1771041481806,2.91820881,2055.5,2055.1,0.49771467]
[1771041482103,2.91820881,2055.4,2055.1,0.49771467]
[1771041482306,1.2162345,2055.6,2055.1,0.49771467]
[1771041482472,2.9182917,2055.5,2055.1,0.49771467]
[1771041482673,2.9182917,2055.4,2055.1,0.49771467]
[1771041482967,1.2162345,2055.6,2055.1,0.49771467]
[1771041483174,2.91829112,2055.5,2055.1,0.49771467]
[1771041483374,2.91829112,2055.4,2055.1,0.49771467]
[1771041483577,1.2162345,2055.6,2055.1,0.49771467]
[1771041483903,2.91827509,2055.5,2055.1,0.49771467]
[1771041484070,2.91827509,2055.4,2055.1,0.49771467]
[1771041484270,1.2162345,2055.6,2055.1,0.49771467]
[1771041484480,2.91824968,2055.5,2055.1,0.49771467]
[1771041484676,1.2162345,2055.6,2055.1,0.49771467]
[1771041484883,2.91824823,2055.5,2055.1,0.49771467]
[1771041485198,2.91824823,2055.4,2055.1,0.49771467]
[1771041485500,1.21629189,2055.5,2054.9,1.67159431]
[1771041485688,2.91829611,2055.4,2054.9,1.67159431]
[1771041485866,1.21629189,2055.5,2054.9,1.67159431]
[1771041486071,2.91829788,2055.4,2054.9,1.67159431]
[1771041486271,1.21629189,2055.5,2054.9,1.67159431]
[1771041486489,2.91829539,2055.4,2054.9,1.67159431]
[1771041486695,1.21629189,2055.5,2054.9,1.67159431]
[1771041486895,2.91829584,2055.4,2054.9,1.67159431]
[1771041487110,1.21629189,2055.5,2054.9,1.67159431]
[1771041487270,2.91830456,2055.4,2054.9,1.67159431]
[1771041487466,1.21629189,2055.5,2054.9,1.67159431]
[1771041487682,2.91831571,2055.4,2054.9,1.67159431]
[1771041487971,1.21629189,2055.5,2054.9,1.67159431]
[1771041488172,2.91831608,2055.4,2054.9,1.67159431]
[1771041488373,1.21629189,2055.5,2054.9,1.67159431]
[1771041488583,2.91838551,2055.4,2055.0,0.45403709]
[1771041488810,1.21629189,2055.5,2055.0,0.45403709]
[1771041488984,2.91839196,2055.4,2055.0,0.45403709]
[1771041489192,1.21629189,2055.5,2055.0,0.45403709]
[1771041489402,2.91874234,2055.4,2055.0,0.45403709]
[1771041489576,1.21629189,2055.5,2055.0,1.67058122]
[1771041489776,2.91874129,2055.4,2055.0,1.67058122]
[1771041490001,1.21629189,2055.5,2055.0,1.67058122]
[1771041490204,2.91874089,2055.4,2055.0,1.67058122]
[1771041490392,1.21629189,2055.5,2055.0,1.67058122]
[1771041490595,2.9192047,2055.4,2055.0,1.67058122]
[1771041490777,1.21621966,2055.6,2055.0,1.67058122]
[1771041490977,2.91920378,2055.5,2055.1,0.45403709]
[1771041491187,2.91920378,2055.4,2055.1,0.45403709]
[1771041491484,1.21621966,2055.6,2055.1,0.45403709]
[1771041491802,1.71569366,2055.8,2055.2,0.45403709]
[1771041493104,1.71679366,2055.8,2055.2,0.45403709]
[1771041493492,0.49957391,2055.7,2055.1,1.21645319]
[1771041494577,1.21618992,2055.6,2055.0,1.67053669]
[1771041496217,1.71576383,2055.6,2055.0,0.45403709]
[1771041497210,1.71576383,2055.6,2055.0,1.67058173]
[1771041505811,1.71576383,2055.6,2055.0,0.45403709]
[1771041506220,1.71576383,2055.6,2055.0,1.67057425]
[1771041512424,1.69788677,2055.8,2055.0,1.67057425]
[1771041512722,0.48071517,2055.7,2055.0,1.70351441]
[1771041513495,0.48071517,2055.7,2055.1,0.48697725]
[1771041513693,1.2171716,2055.8,2055.1,0.48697725]
[1771041513907,1.69788677,2055.8,2055.1,0.48697725]
[1771041515023,1.69788677,2055.8,2055.1,1.70344836]
[1771041515706,1.69788677,2055.8,2054.9,0.48797725]
[1771041515707,0.48071517,2055.7,2054.9,0.48797725]
[1771041516030,0.48071517,2055.6,2054.9,0.48797725]
[1771041516220,0.48071517,2055.6,2054.9,0.001]
[1771041518502,0.48071517,2055.4,2054.9,0.001]
[1771041520237,0.45169136,2055.2,2054.9,0.001]
[1771041521640,1.21648581,2055.1,2054.9,0.001]
[1771041536932,1.21648581,2055.1,2054.7,0.001]
[1771041537825,3.48248581,2055.1,2054.7,0.001]
[1771041540552,0.45169136,2055.0,2054.5,0.001]
[1771041541936,10.11788099,2055.1,2054.5,0.001]
[1771041541937,3.35060242,2054.9,2054.5,0.001]
[1771041542130,2.87858507,2054.8,2054.5,0.001]
[1771041542329,2.87858507,2054.7,2054.5,0.001]
[1771041542525,0.47201735,2054.9,2054.5,0.001]
[1771041542726,1.21672263,2054.7,2054.5,0.001]
[1771041551273,3.48971135,2054.8,2054.5,0.001]
[1771041558073,3.48971135,2054.8,2054.5,0.46308849]
[1771041558268,2.9135884,2054.7,2054.5,0.46308849]
[1771041558469,3.50271135,2054.8,2054.5,0.46308849]
[1771041558765,2.286,2054.8,2054.5,0.46308849]
[1771041559268,0.25504406,2055.0,2054.5,0.46308849]
[1771041559465,0.0011,2055.0,2054.5,0.46308849]
[1771041559959,1.21764609,2055.0,2054.5,1.67992395]
[1771041560145,1.21764609,2055.0,2054.6,0.46208849]
[1771041561642,0.0011,2055.0,2054.6,0.46208849]
[1771041564772,0.0011,2055.0,2054.6,1.21676913]
[1771041565081,0.0011,2055.0,2054.7,0.46208849]
[1771041572071,4.86593127,2055.2,2054.7,0.46208849]
[1771041588671,1.21662662,2055.2,2054.7,0.46208849]
[1771041590296,1.21662662,2055.2,2054.7,1.6788098]
[1771041595402,0.0002,2055.2,2054.8,0.46029137]
[1771041597986,0.0002,2055.2,2054.9,1.21660421]
[1771041598306,0.0002,2055.2,2055.0,0.46029137]
[1771041600409,0.0002,2055.2,2055.0,1.67683201]
[1771041602912,0.0002,2055.2,2054.8,1.69090632]
[1771041603209,0.0002,2055.2,2054.5,4.86833765]
[1771041603210,0.0002,2055.2,2054.6,5.34140508]
[1771041603813,0.0002,2055.2,2054.7,0.47428364]
[1771041605100,0.0002,2055.2,2054.8,1.21666342]
[1771041605413,0.0002,2055.2,2054.9,0.47428364]
[1771041607988,0.0002,2055.2,2055.1,0.47428364]
[1771041610728,0.0011,2055.4,2055.2,0.47428364]
[1771041610888,0.0011,2055.4,2055.0,0.47428364]
[1771041611807,0.0011,2055.4,2054.9,2.59328364]
[1771041612384,0.0011,2055.4,2054.8,3.33566342]
[1771041612619,0.0011,2055.4,2054.8,1.21666342]
[1771041612620,0.47444147,2055.4,2054.8,1.21666342]
[1771041613215,1.69077918,2055.4,2054.8,1.69094706]
[1771041615913,0.47444147,2055.4,2054.8,1.69094706]
[1771041618520,0.0011,2055.4,2054.9,0.47428364]
[1771041619102,0.0011,2055.4,2055.0,0.47428364]
[1771041620100,0.0011,2055.4,2055.2,0.47428364]
[1771041622139,0.0011,2055.4,2055.2,1.69067764]
[1771041625914,0.0011,2055.4,2055.3,0.47428364]
[1771041626111,0.0011,2055.6,2055.4,0.47428364]
[1771041626510,0.0011,2055.6,2055.5,1.21624908]
[1771041626713,0.0011,2055.6,2055.4,1.69055312]
[1771041629522,0.0011,2055.6,2055.3,1.21633423]
[1771041631035,0.0011,2055.6,2055.2,1.21637963]
[1771041632121,0.38515614,2055.7,2055.2,1.21637963]
[1771041633113,0.47540007,2055.6,2055.1,2.128]
[1771041633319,0.47540007,2055.6,2055.1,3.34448146]
[1771041634456,0.47540007,2055.5,2054.9,1.21660421]
[1771041634666,0.47540007,2055.5,2055.0,2.135]
[1771041635945,0.47540007,2055.5,2054.9,0.001]
[1771041636425,1.69182669,2055.2,2054.9,0.001]
[1771041637357,0.47540007,2055.1,2054.9,0.001]
[1771041637537,1.21634253,2055.4,2054.9,0.001]
[1771041637738,2.91459256,2055.3,2054.9,0.001]
[1771041637931,2.91459256,2055.2,2054.9,0.001]
[1771041638132,1.21634253,2055.4,2054.9,0.001]
[1771041638434,2.91401217,2055.3,2054.9,0.001]
[1771041638634,2.91401217,2055.2,2054.9,1.21760421]
[1771041638833,1.6917426,2055.4,2054.9,1.21760421]
[1771041639040,2.91401169,2055.3,2054.9,1.21760421]
[1771041639241,1.6917426,2055.4,2054.9,1.21760421]
[1771041639440,2.913494,2055.3,2054.9,1.21760421]
[1771041639659,1.6917426,2055.4,2054.9,1.21760421]
[1771041639858,2.91349368,2055.3,2054.9,1.21760421]
[1771041640056,1.6917426,2055.4,2054.9,1.21760421]
[1771041640264,2.91348442,2055.3,2054.9,0.001]
[1771041640557,1.6917426,2055.4,2054.9,0.001]
[1771041640760,2.91302199,2055.3,2054.8,1.67658874]
[1771041640941,1.6917426,2055.4,2054.8,1.67658874]
[1771041641141,2.91302209,2055.3,2054.8,1.67658874]
[1771041641341,1.6917426,2055.4,2054.8,1.67658874]
[1771041641560,2.91257394,2055.3,2054.8,1.67658874]
[1771041641750,1.6917426,2055.4,2054.8,1.67658874]
[1771041641950,2.91257372,2055.3,2054.8,1.67658874]
[1771041642164,1.6917426,2055.4,2054.8,1.67658874]
[1771041642335,2.91218665,2055.3,2054.8,1.67658874]
[1771041642535,1.6917426,2055.4,2054.8,1.67658874]
[1771041642860,2.91218633,2055.3,2054.8,1.67658874]
[1771041643062,1.6917426,2055.4,2054.8,1.67658874]
[1771041643233,2.91218665,2055.3,2054.8,1.67658874]
[1771041643434,1.6917426,2055.4,2054.8,1.67658874]
[1771041643633,2.91185799,2055.3,2054.8,1.67658874]
[1771041643858,1.6917426,2055.4,2054.8,1.67658874]
[1771041644062,2.91185865,2055.3,2054.8,1.67558874]
[1771041644243,1.6917426,2055.4,2054.8,1.67558874]
[1771041644438,2.91155741,2055.3,2054.8,1.67558874]
[1771041644763,0.48309012,2055.3,2054.7,1.2176725]
[1771041646436,1.69949879,2055.3,2054.7,1.2176725]
[1771041647059,1.69949879,2055.3,2054.7,0.001]
[1771041650569,1.69949879,2055.3,2054.7,0.49110548]
[1771041654879,1.69949879,2055.3,2054.8,1.21666342]
[1771041655874,1.21640867,2055.3,2054.8,1.21666342]
[1771041656076,1.21635453,2055.4,2054.8,1.7067689]
[1771041656273,2.91034513,2055.3,2054.8,1.7067689]
[1771041656473,1.69944465,2055.4,2054.8,1.7067689]
[1771041656680,2.91034584,2055.3,2054.8,1.7067689]
[1771041656984,1.69944465,2055.4,2054.8,1.7067689]
[1771041657187,2.91034602,2055.3,2054.8,1.7067689]
[1771041657356,1.69944465,2055.4,2054.8,1.7067689]
[1771041659297,2.91191149,2055.3,2054.8,1.7067689]
[1771041659470,1.69944465,2055.4,2054.8,1.7067689]
[1771041659672,2.91191138,2055.3,2054.8,1.7067689]
[1771041659891,1.69944465,2055.4,2054.8,1.7067689]
[1771041660090,2.91191115,2055.3,2054.8,1.7067689]
[1771041660291,1.69944465,2055.4,2054.8,1.7067689]
[1771041660494,2.91275396,2055.3,2054.8,1.7067689]
[1771041660692,1.69944465,2055.4,2054.8,1.7067689]
[1771041660890,2.91275455,2055.3,2054.8,1.21666342]
[1771041661199,0.47155478,2055.3,2054.8,1.21666342]
[1771041661566,0.47155478,2055.2,2054.7,0.001]
[1771041663780,1.21648581,2055.1,2054.7,0.001]
[1771041664878,1.68802894,2055.2,2054.7,0.001]
[1771041665084,2.91805283,2055.1,2054.7,0.001]
[1771041665318,1.68802894,2055.2,2054.7,0.001]
[1771041665480,2.91915697,2055.1,2054.8,0.49601998]
[1771041665676,3.5495665,2055.4,2054.8,0.49601998]
[1771041665881,2.91915262,2055.3,2054.8,1.71265243]
[1771041666093,2.91915262,2055.2,2054.8,1.71265243]
[1771041666408,2.91915262,2055.1,2054.8,1.71265243]
[1771041666608,1.2163464,2055.4,2054.8,1.71265243]
[1771041666810,2.92136004,2055.3,2054.8,1.71265243]
[1771041667006,2.92136004,2055.2,2054.8,0.49601998]
[1771041667181,2.92136004,2055.1,2054.7,0.001]
[1771041667381,0.47155478,2055.2,2054.7,0.001]
[1771041667594,2.9212967,2055.1,2054.7,0.001]
[1771041667809,0.47155478,2055.2,2054.7,0.001]
[1771041668013,2.9212967,2055.1,2054.7,0.001]
[1771041668192,1.68804001,2055.2,2054.7,0.001]
[1771041668514,2.9212788,2055.1,2054.7,0.001]
[1771041668704,1.68804001,2055.2,2054.7,0.001]
[1771041669026,2.92122863,2055.1,2054.7,0.001]
[1771041669210,1.68804001,2055.2,2054.7,0.001]
[1771041669378,2.92117438,2055.1,2054.7,0.001]
[1771041669575,1.68804001,2055.2,2054.7,0.001]
[1771041669780,2.92117438,2055.1,2054.7,0.001]
[1771041669980,1.68804001,2055.2,2054.7,0.001]
[1771041670208,2.92117485,2055.1,2054.7,0.001]
[1771041670415,1.68804001,2055.2,2054.7,0.001]
[1771041670583,2.92112791,2055.1,2054.7,0.001]
[1771041670784,1.68804001,2055.2,2054.7,0.001]
[1771041671012,2.92112825,2055.1,2054.7,0.001]
[1771041671184,1.68804001,2055.2,2054.7,0.001]
[1771041671387,2.92111025,2055.1,2054.7,0.001]
[1771041671585,1.68804001,2055.2,2054.7,0.001]
[1771041671813,2.92108807,2055.1,2054.7,0.001]
[1771041672115,1.68804001,2055.2,2054.7,0.001]
[1771041672320,4.13759718,2055.1,2054.7,0.001]
[1771041672611,1.21650911,2055.1,2054.7,0.001]
[1771041672784,1.68806389,2055.1,2054.7,0.001]
[1771041675815,2.92094431,2055.0,2054.7,0.001]
[1771041676024,1.68806389,2055.1,2054.7,0.001]
[1771041676796,0.47155478,2055.0,2054.7,0.001]
[1771041678834,1.21660421,2054.9,2054.7,0.001]
[1771041681204,4.86605666,2055.1,2054.7,0.001]
[1771041683637,0.47155478,2055.0,2054.7,0.001]
[1771041683803,4.86605666,2055.1,2054.7,0.001]
[1771041684811,5.33761144,2055.1,2054.7,0.001]
[1771041688052,1.21660421,2054.9,2054.7,0.001]
[1771041691557,4.86620814,2055.0,2054.7,0.001]
[1771041691846,2.91871685,2054.9,2054.7,0.001]
[1771041692048,4.86620814,2055.0,2054.7,0.001]
[1771041692211,2.91871851,2054.9,2054.7,0.001]
[1771041692409,4.86620814,2055.0,2054.7,0.001]
[1771041692612,2.91884687,2054.9,2054.7,0.001]
[1771041692912,4.86620814,2055.0,2054.7,0.001]
[1771041693103,2.91884687,2054.9,2054.7,0.001]
[1771041693306,4.86620814,2055.0,2054.7,0.001]
[1771041693533,4.13561779,2054.9,2054.7,0.001]
[1771041693735,1.21662092,2054.9,2054.7,0.001]
[1771041694749,1.21658476,2055.0,2054.7,0.001]
[1771041694916,2.9190066,2054.9,2054.7,0.001]
[1771041695116,1.21658476,2055.0,2054.7,0.001]
[1771041695357,2.9190073,2054.9,2054.7,0.001]
[1771041695565,1.21662091,2054.9,2054.7,0.001]
[1771041698673,4.86621349,2055.0,2054.7,0.001]
[1771041698843,2.91929974,2054.9,2054.7,0.001]
[1771041699068,4.86621349,2055.0,2054.7,0.001]
[1771041699265,2.91929974,2054.9,2054.7,0.001]
[1771041699461,4.86621349,2055.0,2054.7,0.001]
[1771041699768,2.91943043,2054.9,2054.7,0.001]
[1771041700071,4.86621349,2055.0,2054.7,0.001]
[1771041700277,2.91943077,2054.9,2054.7,0.001]
[1771041700566,4.86621349,2055.0,2054.7,0.001]
[1771041700776,4.13620201,2054.9,2054.7,0.001]
[1771041700949,1.21661443,2054.9,2054.7,0.001]
[1771041705265,2.9205906,2054.8,2054.7,0.001]
[1771041707459,4.13725402,2054.8,2054.7,0.001]
[1771041709452,4.13725402,2054.8,2054.6,0.001]
[1771041709636,2.9205906,2054.7,2054.6,0.001]
[1771041712172,4.13731323,2054.7,2054.6,0.001]
[1771041713055,2.9205906,2054.7,2054.6,0.001]
[1771041714447,1.2166655,2054.8,2054.5,0.46065688]
[1771041715272,1.21665264,2054.9,2054.5,0.46065688]
[1771041715473,2.91995523,2054.8,2054.5,0.46065688]
[1771041715772,1.21665264,2054.9,2054.5,0.46065688]
[1771041715976,2.91995545,2054.8,2054.5,0.46065688]
[1771041716178,1.21665264,2054.9,2054.5,0.46065688]
[1771041716351,2.91997693,2054.8,2054.5,0.46065688]
[1771041716550,1.21665264,2054.9,2054.5,0.46065688]
[1771041716763,2.91996066,2054.8,2054.5,0.46065688]
[1771041717063,1.21665264,2054.9,2054.5,0.46065688]
[1771041717362,2.91996087,2054.8,2054.5,0.46065688]
[1771041717660,1.21665264,2054.9,2054.5,0.46065688]
[1771041717979,2.91997195,2054.8,2054.5,0.46065688]
[1771041718180,1.21665264,2054.9,2054.5,0.46065688]
[1771041718385,2.91997218,2054.8,2054.5,0.46065688]
[1771041718680,4.86736623,2055.0,2054.5,0.46065688]
[1771041718881,2.91998842,2054.9,2054.5,0.46065688]
[1771041719096,2.91998842,2054.8,2054.5,0.46065688]
[1771041719255,4.86736623,2055.0,2054.5,0.46065688]
[1771041719575,2.92000928,2054.9,2054.5,0.46065688]
[1771041719779,2.92000928,2054.8,2054.5,0.46065688]
[1771041719980,4.86736623,2055.0,2054.5,0.46065688]
[1771041720180,2.9200094,2054.9,2054.5,0.46065688]
[1771041720487,2.9200094,2054.8,2054.5,0.46065688]
[1771041720655,4.86736623,2055.0,2054.5,0.46065688]
[1771041720852,2.9200079,2054.9,2054.5,0.46065688]
[1771041721053,2.9200079,2054.8,2054.5,0.46065688]
[1771041721373,4.86736623,2055.0,2054.5,0.46065688]
[1771041721574,2.92004171,2054.9,2054.5,0.46065688]
[1771041721879,2.92004171,2054.8,2054.5,0.001]
[1771041722084,0.46430529,2054.9,2054.5,0.001]
[1771041722263,3.38438366,2054.8,2054.5,0.001]
[1771041722464,2.92007837,2054.7,2054.5,0.001]
[1771041722649,0.46430529,2054.8,2054.5,0.001]
[1771041722851,4.13697079,2054.7,2054.5,0.001]
[1771041723152,1.2167386,2054.7,2054.5,0.001]
[1771041727595,1.21666342,2054.8,2054.5,0.001]
[1771041727792,2.92025893,2054.7,2054.5,0.001]
[1771041727959,1.21666342,2054.8,2054.5,0.001]
[1771041728159,2.92026092,2054.7,2054.5,0.001]
[1771041728459,1.21666342,2054.8,2054.5,0.001]
[1771041728658,2.92033023,2054.7,2054.5,0.001]
[1771041728859,1.21666342,2054.8,2054.5,0.001]
[1771041729060,2.9203294,2054.7,2054.5,0.001]